bitfinex/quotes_ETHUSD_20260108
["timestamp","ask_amount","ask_price","bid_price","bid_amount"]
[1767887140591,1.84173301,3094.8,3094.0,3.23206205]
[1767887141198,0.99573301,3094.7,3094.0,3.23206205]
[1767887141510,0.99573301,3094.7,3094.0,6.4641241]
[1767887141683,0.99573301,3095.6,3094.0,9.69618615]
[1767887141872,0.99573301,3095.3,3094.0,6.4641241]
[1767887142075,0.99573301,3095.3,3094.1,0.71752272]
[1767887142271,0.99573301,3095.1,3094.1,0.71752272]
[1767887142516,0.99573301,3094.9,3093.6,0.09668063]
[1767887142699,0.99573301,3094.9,3093.9,3.23209156]
[1767887142881,0.99573301,3094.9,3093.4,3.32930704]
[1767887142882,0.99573301,3094.9,3094.0,3.23203474]
[1767887143275,0.99573301,3094.9,3093.4,3.32930704]
[1767887143276,0.99573301,3094.9,3094.1,3.2319031]
[1767887143515,0.99573301,3094.9,3093.5,3.23255442]
[1767887143689,0.99573301,3094.9,3093.6,0.33292351]
[1767887143877,0.99573301,3094.9,3092.9,0.845]
[1767887144076,0.99573301,3094.6,3093.1,6.46600496]
[1767887144376,0.99573301,3094.8,3093.1,9.69900744]
[1767887144575,0.846,3094.7,3093.2,0.09668063]
[1767887144885,0.846,3094.6,3093.3,0.001]
[1767887145085,0.846,3094.6,3093.3,1.07561766]
[1767887145308,0.99573301,3094.5,3093.3,1.07561766]
[1767887146399,0.846,3094.6,3093.4,6.4653779]
[1767887146609,4.07744958,3094.6,3093.4,6.4653779]
[1767887146909,7.30889916,3094.6,3093.4,3.23268895]
[1767887147113,0.99573301,3094.4,3093.3,0.001]
[1767887147984,0.99573301,3093.5,3092.3,0.001]
[1767887148185,0.99573301,3093.3,3092.3,0.001]
[1767887148407,6.46579592,3093.2,3092.3,0.001]
[1767887148613,7.61983114,3093.2,3092.3,0.001]
[1767887148812,10.8527291,3093.2,3092.3,0.001]
[1767887149014,7.61983114,3093.2,3092.3,0.001]
[1767887149607,0.99573301,3093.1,3092.3,0.001]
[1767887150322,3.23227099,3093.8,3092.3,0.001]
[1767887150505,4.01407808,3093.7,3092.3,0.001]
[1767887150688,3.23227099,3093.8,3092.3,0.001]
[1767887150886,3.23227099,3093.8,3092.3,1.04716919]
[1767887151087,0.846,3093.7,3092.3,1.04716919]
[1767887151317,0.846,3093.7,3092.3,0.09768063]
[1767887152590,4.0784105,3093.7,3092.4,6.46746862]
[1767887152801,4.0784105,3093.7,3092.5,0.65651492]
[1767887152802,0.846,3093.7,3092.5,0.65651492]
[1767887153000,4.07839609,3093.7,3092.5,0.65651492]
[1767887153420,0.846,3093.7,3092.5,0.65651492]
[1767887153587,4.07838638,3093.7,3092.5,0.65651492]
[1767887154099,4.07841427,3093.7,3092.5,0.65651492]
[1767887154321,1.03613117,3094.2,3092.6,1.03577178]
[1767887154504,4.07797966,3094.1,3092.6,1.03577178]
[1767887154709,6.46395932,3094.1,3092.7,6.46684126]
[1767887155227,0.846,3094.0,3092.7,6.46684126]
[1767887156493,6.46395932,3094.1,3092.7,6.46684126]
[1767887156690,0.846,3094.0,3092.8,0.7502613]
[1767887156894,6.46433304,3093.9,3092.8,0.7502613]
[1767887157195,6.46433304,3093.9,3092.6,3.23342751]
[1767887157602,1.03613639,3093.8,3092.5,3.23357524]
[1767887157901,0.99573301,3093.7,3092.4,3.23366815]
[1767887158108,0.99573301,3093.7,3092.3,0.09768063]
[1767887158309,3.23216652,3093.9,3092.8,3.23331124]
[1767887158521,0.88740338,3093.8,3092.9,0.32333112]
[1767887158896,0.88740338,3093.8,3092.8,3.23431124]
[1767887158897,4.22810848,3093.7,3092.8,0.001]
[1767887159102,0.99573301,3093.4,3092.3,0.001]
[1767887159313,1.88314292,3093.3,3092.3,0.001]
[1767887159727,0.99573301,3093.2,3092.3,0.001]
[1767887160309,1.15573301,3093.0,3090.7,0.94948856]
[1767887160522,1.15573301,3093.0,3089.1,0.09668063]
[1767887160523,0.1682,3091.2,3089.6,0.09668063]
[1767887160727,0.1682,3091.2,3090.1,3.23609852]
[1767887160728,0.847,3091.1,3090.1,3.23609852]
[1767887160925,0.1682,3091.2,3090.2,1.04616919]
[1767887161229,0.1682,3091.2,3090.4,0.09668063]
[1767887161422,0.1682,3091.2,3090.2,1.04616919]
[1767887161423,0.1682,3091.2,3090.3,0.09668063]
[1767887161619,0.1682,3091.2,3090.3,1.04616919]
[1767887161924,0.847,3092.2,3091.1,0.09668063]
[1767887162124,0.847,3092.2,3091.4,0.09668063]
[1767887162326,0.847,3092.2,3091.1,0.09668063]
[1767887162929,4.08103923,3092.2,3091.1,0.09668063]
[1767887163108,1.39468649,3092.9,3091.3,0.09668063]
[1767887163313,3.73177135,3092.8,3091.5,0.09668063]
[1767887163528,0.847,3092.7,3091.5,0.09668063]
[1767887163698,0.847,3092.7,3091.3,0.09668063]
[1767887163699,0.847,3092.6,3091.3,0.09668063]
[1767887164157,3.73177135,3092.8,3091.7,0.09668063]
[1767887164328,4.57877135,3092.8,3091.5,1.05510839]
[1767887164529,7.81217184,3092.8,3091.1,0.09668063]
[1767887164733,0.78121718,3092.7,3091.5,0.09668063]
[1767887164930,3.23352518,3092.6,3091.5,0.09668063]
[1767887165137,6.46705036,3092.6,3091.5,0.09668063]
[1767887165509,0.847,3092.5,3091.1,0.09668063]
[1767887165726,0.99763544,3092.4,3091.1,0.09668063]
[1767887165933,0.18446354,3092.3,3091.1,0.09668063]
[1767887166232,0.18446354,3092.3,3091.3,0.09668063]
[1767887166421,6.46705036,3092.6,3091.7,0.09668063]
[1767887166629,0.847,3092.2,3091.5,0.09668063]
[1767887166822,3.23415265,3092.0,3091.5,0.09668063]
[1767887167135,3.23415265,3092.0,3091.3,0.09668063]
[1767887167335,3.23415265,3092.0,3091.1,0.09668063]
[1767887167532,3.23415265,3092.0,3091.3,0.09668063]
[1767887167906,6.46705036,3092.6,3091.5,0.09668063]
[1767887168108,1.57182675,3092.5,3091.8,0.09668063]
[1767887168335,0.847,3092.5,3091.8,0.09668063]
[1767887168535,0.847,3092.4,3091.8,0.09668063]
[1767887168714,0.847,3092.4,3091.6,0.09668063]
[1767887168911,6.46767778,3092.3,3091.6,0.09668063]
[1767887169107,3.23321154,3092.9,3091.8,0.09668063]
[1767887169307,0.4230847,3092.8,3091.8,0.09668063]
[1767887169529,0.847,3092.7,3091.8,0.09668063]
[1767887170239,0.99763544,3093.4,3092.2,0.09668063]
[1767887170406,7.3125869,3093.3,3092.2,0.09668063]
[1767887170607,3.23279345,3093.3,3092.4,0.09668063]
[1767887170807,0.847,3093.2,3092.4,0.09668063]
[1767887171035,0.847,3093.3,3092.6,0.09668063]
[1767887171341,0.847,3093.2,3092.6,0.09668063]
[1767887171540,6.4649599,3093.6,3092.6,0.09668063]
[1767887171842,0.847,3093.2,3092.0,0.09668063]
[1767887172021,0.04041253,3093.1,3091.8,0.02416596]
[1767887172224,4.58665755,3093.0,3091.2,1.07589873]
[1767887172529,0.04041514,3092.9,3091.2,1.07589873]
[1767887172847,0.04041514,3092.9,3091.0,0.09668063]
[1767887172848,0.46270727,3092.8,3091.0,0.09668063]
[1767887173015,9.70057554,3092.6,3091.0,0.09668063]
[1767887173355,0.04042037,3092.5,3090.8,0.09668063]
[1767887173553,9.70057554,3092.6,3091.1,0.09668063]
[1767887173918,0.04042037,3092.5,3091.1,0.09668063]
[1767887174124,0.97409959,3092.4,3091.1,0.09668063]
[1767887174334,0.847,3092.3,3091.1,0.09668063]
[1767887174535,0.847,3092.3,3090.8,0.09668063]
[1767887174932,0.847,3092.3,3091.0,0.09668063]
[1767887174933,6.46788694,3092.2,3091.0,0.09668063]
[1767887175125,3.23394347,3092.2,3091.0,0.09668063]
[1767887175322,3.23342063,3092.7,3091.4,0.09668063]
[1767887175649,4.08042063,3092.7,3091.8,0.09668063]
[1767887176013,0.847,3092.7,3092.0,0.09668063]
[1767887176426,0.847,3092.7,3091.8,0.09668063]
[1767887177027,6.46705036,3092.6,3091.6,0.09668063]
[1767887177247,7.1984554,3092.6,3091.6,0.09668063]
[1767887177542,7.1984554,3092.6,3091.4,0.09668063]
[1767887178124,10.43198058,3092.6,3091.4,0.09668063]
[1767887178324,0.04042037,3092.5,3091.0,1.07589873]
[1767887178738,1.04724009,3092.4,3091.0,0.09668063]
[1767887179166,12.97577854,3092.3,3090.5,1.07589873]
[1767887179343,6.46767778,3092.3,3090.9,0.09668063]
[1767887179759,3.23383889,3092.3,3091.3,0.09668063]
[1767887179953,3.23383889,3092.3,3090.9,0.09668063]
[1767887179954,7.35510076,3092.3,3090.9,0.09668063]
[1767887180123,7.35510076,3092.3,3090.1,0.25952256]
[1767887180124,0.99763544,3092.1,3090.2,0.09668063]
[1767887180323,0.99763544,3092.1,3090.4,0.09668063]
[1767887180618,0.99763544,3092.1,3090.2,0.09668063]
[1767887180824,0.99763544,3091.5,3089.7,0.09668063]
[1767887181024,1.32293237,3091.4,3089.7,0.09668063]
[1767887181328,12.93953996,3091.3,3089.5,0.09668063]
[1767887181538,12.93953996,3091.3,3089.7,0.09668063]
[1767887181733,0.99763544,3091.2,3089.7,0.09668063]
[1767887181927,9.70465497,3091.3,3089.7,0.09668063]
[1767887182224,1.94975873,3091.2,3089.9,0.09668063]
[1767887182417,1.94975873,3091.2,3089.7,0.09668063]
[1767887182934,1.94975873,3091.2,3089.5,0.09668063]
[1767887183138,9.7052829,3091.1,3089.8,0.09668063]
[1767887183337,0.847,3091.0,3089.9,0.09668063]
[1767887183549,3.0101396,3091.0,3089.6,0.09668063]
[1767887184963,3.0101396,3091.0,3089.1,0.09668063]
[1767887184964,0.99763544,3090.9,3089.1,0.09668063]
[1767887185167,0.99763544,3090.7,3089.1,0.09668063]
[1767887185367,1.39392686,3090.6,3089.3,0.09668063]
[1767887185662,6.4708166,3090.8,3089.3,0.09668063]
[1767887185663,0.99763544,3090.4,3089.3,0.09668063]
[1767887185844,0.99763544,3090.4,3088.8,0.09668063]
[1767887186173,0.99763544,3090.4,3089.0,0.09668063]
[1767887186467,0.847,3090.3,3089.0,0.09668063]
[1767887186639,0.18446354,3090.2,3088.8,0.09668063]
[1767887186846,1.03146354,3090.2,3088.8,0.09668063]
[1767887187266,1.03146354,3090.2,3089.0,0.09668063]
[1767887187467,3.23614122,3090.1,3089.5,0.09668063]
[1767887187693,6.47228244,3090.1,3089.4,0.07358913]
[1767887187968,0.99763544,3090.0,3088.9,0.09668063]
[1767887188152,0.99763544,3090.0,3088.6,0.09668063]
[1767887188359,0.99763544,3090.0,3088.2,0.09668063]
[1767887188563,0.99763544,3089.8,3088.2,0.09668063]
[1767887188763,0.847,3089.7,3088.2,0.09668063]
[1767887188939,0.847,3089.7,3088.6,0.09668063]
[1767887189146,0.847,3089.7,3088.2,0.09668063]
[1767887189578,9.70999482,3089.6,3088.2,0.09668063]
[1767887189876,15.09975823,3089.6,3088.0,0.09668063]
[1767887190242,11.86309329,3089.6,3088.0,0.09668063]
[1767887190656,15.09975823,3089.6,3088.0,0.09668063]
[1767887190879,3.23666494,3089.6,3088.6,0.09668063]
[1767887191182,6.47315652,3089.7,3088.8,0.09668063]
[1767887191474,7.32015652,3089.7,3088.4,1.07589873]
[1767887191673,6.47315652,3089.7,3088.4,1.07589873]
[1767887191868,6.47144474,3090.5,3088.8,0.09668063]
[1767887192174,9.70716711,3090.5,3088.8,1.07589873]
[1767887192372,0.847,3090.4,3088.8,1.07589873]
[1767887192540,0.88744783,3090.4,3088.8,1.07589873]
[1767887192739,1.38303373,3090.3,3088.8,1.07589873]
[1767887193071,3.2350943,3091.1,3089.5,0.09668063]
[1767887193279,0.847,3091.0,3089.7,0.09668063]
[1767887193780,10.63100084,3090.9,3089.3,0.09668063]
[1767887193941,9.70591089,3090.9,3089.7,0.09668063]
[1767887194139,1.85803369,3090.8,3089.3,0.09668063]
[1767887194369,1.81759109,3090.8,3089.3,0.09668063]
[1767887194676,1.81759109,3090.8,3089.5,0.09668063]
[1767887195546,6.47102598,3090.7,3089.5,0.09668063]
[1767887195747,9.70653897,3090.7,3089.5,0.09668063]
[1767887195948,0.847,3090.6,3089.5,0.09668063]
[1767887196345,6.47102598,3090.7,3089.5,0.09668063]
[1767887196550,8.24311593,3090.7,3089.7,0.09668063]
[1767887196746,8.24311593,3090.7,3089.9,0.09668063]
[1767887197059,8.24311593,3090.7,3089.7,0.09668063]
[1767887197581,12.30294051,3090.7,3089.5,0.09668063]
[1767887198002,0.92508995,3090.6,3089.4,0.09668063]
[1767887198698,0.92508995,3090.6,3089.6,0.09668063]
[1767887199198,10.55353897,3090.7,3089.6,0.09668063]
[1767887199352,0.04044522,3090.6,3089.2,0.09668063]
[1767887199662,6.47165414,3090.4,3089.2,0.09668063]
[1767887199863,6.47165414,3090.4,3089.4,0.09668063]
[1767887200963,6.47165414,3090.4,3089.8,0.001]
[1767887201266,0.002,3090.3,3089.4,0.09668063]
[1767887201694,0.002,3090.3,3089.4,1.07408295]
[1767887201865,0.002,3090.3,3089.4,0.09668063]
[1767887202406,0.002,3090.3,3089.2,0.09668063]
[1767887202604,0.64936541,3090.3,3089.0,0.09668063]
[1767887202903,0.04045045,3090.2,3089.0,0.09668063]
[1767887203057,1.77308995,3090.1,3088.8,0.09668063]
[1767887203257,0.22180711,3090.0,3088.2,1.07408295]
[1767887203461,0.96554302,3090.0,3088.3,0.09668063]
[1767887203764,0.92508995,3089.8,3087.9,0.09668063]
[1767887203958,0.92508995,3089.5,3087.7,0.09668063]
[1767887204190,0.92508995,3089.3,3087.5,1.47318687]
[1767887204573,0.848,3089.2,3087.7,0.09668063]
[1767887204773,0.92508995,3089.3,3087.7,0.09668063]
[1767887204981,0.92508995,3089.1,3087.9,0.09668063]
[1767887205290,0.92508995,3089.1,3087.5,1.37650624]
[1767887205505,0.177309,3089.0,3087.5,1.37650624]
[1767887205705,6.47479684,3088.9,3087.5,1.37650624]
[1767887206008,6.47479684,3088.9,3087.8,0.09668063]
[1767887206311,6.47479684,3088.9,3087.6,0.09668063]
[1767887206607,6.47479684,3088.9,3087.8,0.09668063]
[1767887207606,3.23739842,3088.9,3088.2,0.09668063]
[1767887207773,0.32373984,3088.9,3087.6,0.09668063]
[1767887208775,0.32373984,3088.9,3087.5,1.37650624]
[1767887208977,1.24882979,3088.9,3087.7,0.09668063]
[1767887209807,9.71250969,3088.8,3087.5,1.37650624]
[1767887210011,1.09613395,3088.7,3087.5,1.37650624]
[1767887210199,1.09613395,3088.7,3087.6,0.09668063]
[1767887210402,1.77308995,3088.6,3087.5,1.37650624]
[1767887211217,6.47500646,3088.8,3087.6,0.09668063]
[1767887211388,6.47500646,3088.8,3087.7,0.47120533]
[1767887211592,3.23750323,3088.8,3087.7,0.47120533]
[1767887211913,3.2367697,3089.5,3087.8,7.55118637]
[1767887212121,7.32162017,3089.5,3088.0,1.07408295]
[1767887212411,7.32162017,3089.5,3088.2,0.09668063]
[1767887212710,6.47362017,3089.5,3088.4,0.09668063]
[1767887212914,3.2367697,3089.5,3088.2,1.07408295]
[1767887213116,3.23671613,3089.6,3088.5,0.09668063]
[1767887213612,0.92508995,3089.4,3087.7,0.47120533]
[1767887213824,0.92508995,3089.0,3087.5,1.37650624]
[1767887214119,0.848,3088.9,3087.7,0.97740232]
[1767887214316,3.23718882,3089.1,3087.8,1.07408295]
[1767887214482,6.47361494,3089.5,3088.0,0.09668063]
[1767887214682,6.47361494,3089.5,3088.0,1.07408295]
[1767887214683,0.848,3089.4,3088.0,1.07408295]
[1767887214913,3.23635069,3089.9,3088.2,1.07408295]
[1767887215088,0.848,3089.6,3088.4,1.07408295]
[1767887215821,6.47374894,3089.4,3088.8,0.002]
[1767887216117,0.97510461,3089.3,3088.5,0.002]
[1767887216304,6.47374894,3089.4,3088.5,0.002]
[1767887217613,0.848,3089.5,3088.5,0.002]
[1767887217917,6.4739585,3089.3,3088.5,0.002]
[1767887218104,3.23697925,3089.3,3088.5,0.002]
[1767887218420,3.23691567,3089.4,3088.5,0.002]
[1767887218801,4.08473656,3089.6,3088.5,0.002]
[1767887218802,3.23620987,3090.1,3088.5,0.002]
[1767887219115,6.79611289,3090.0,3088.5,0.97940232]
[1767887219297,7.64411289,3090.0,3088.6,0.09668063]
[1767887219698,4.08424595,3090.0,3088.6,0.09668063]
[1767887219918,1.77308995,3090.1,3088.7,3.23760805]
[1767887220126,0.848,3090.1,3088.7,6.4752161]
[1767887220691,6.472073,3090.2,3088.7,6.4752161]
[1767887220903,0.848,3090.1,3088.7,6.4752161]
[1767887221085,0.848,3090.1,3088.8,0.65718967]
[1767887221725,0.96554302,3090.0,3088.8,0.65718967]
[1767887221905,7.39779133,3089.9,3088.5,0.002]
[1767887222109,0.04045569,3089.8,3088.5,0.002]
[1767887222321,10.63414202,3089.9,3088.5,0.002]
[1767887222823,0.04045569,3089.8,3088.5,0.002]
[1767887223220,10.63414202,3089.9,3088.5,0.002]
[1767887223416,1.0634142,3089.8,3088.5,0.32599562]
[1767887223620,1.0634142,3089.8,3088.5,1.24640446]
[1767887223809,0.99372677,3089.6,3088.5,0.32599562]
[1767887224119,3.23671386,3089.6,3088.5,3.56371573]
[1767887224301,3.23671386,3089.6,3088.5,6.80153344]
[1767887224498,0.848,3089.7,3088.6,0.68982141]
[1767887224685,4.08459404,3089.7,3088.6,0.68982141]
[1767887224886,3.23659404,3089.7,3088.6,0.68982141]
[1767887225114,7.32118808,3089.7,3088.6,0.68982141]
[1767887225325,4.08459404,3089.7,3088.6,0.68982141]
[1767887225629,0.848,3090.0,3088.7,0.74913549]
[1767887225791,0.848,3090.0,3088.5,6.80153344]
[1767887225792,0.92928325,3089.9,3088.5,0.32599562]
[1767887225992,0.92928325,3089.7,3087.5,1.37650624]
[1767887226192,0.92928325,3089.2,3087.5,1.37650624]
[1767887226395,0.92928325,3089.0,3087.5,1.37650624]
[1767887227720,0.92928325,3089.0,3087.6,3.23867852]
[1767887227917,10.64147851,3088.9,3087.5,4.61531488]
[1767887228117,2.8414311,3088.8,3087.5,2.161945]
[1767887228307,2.8414311,3088.8,3087.5,5.40077366]
[1767887228730,2.8414311,3088.8,3087.5,2.161945]
[1767887228932,2.8414311,3088.8,3087.5,5.40080534]
[1767887229309,6.99814372,3089.8,3087.5,5.40080534]
[1767887229310,0.92928325,3090.0,3088.3,0.09668063]
[1767887229498,0.92928325,3089.8,3088.3,0.09668063]
[1767887229700,0.92928325,3089.6,3088.3,0.09668063]
[1767887230022,6.47374894,3089.4,3088.3,0.09668063]
[1767887230221,0.849,3089.3,3088.3,0.09668063]
[1767887230531,1.05596234,3089.2,3088.3,0.09668063]
[1767887230836,0.96974811,3089.1,3087.8,0.09868063]
[1767887231030,0.96974811,3089.1,3088.0,0.09668063]
[1767887231198,0.96974811,3089.1,3087.8,0.002]
[1767887232510,0.92928325,3088.9,3087.8,0.002]
[1767887232711,3.16512902,3088.8,3087.8,0.002]
[1767887232921,0.92928325,3088.7,3087.8,0.002]
[1767887233121,0.00199999,3087.5,3087.1,0.09668063]
[1767887233327,0.848,3088.0,3087.1,0.09668063]
[1767887233620,1.02572833,3088.0,3086.9,0.09668063]
[1767887233815,1.02572833,3088.0,3087.1,0.09668063]
[1767887234925,3.23844684,3087.9,3087.1,0.09668063]
[1767887235115,4.08644684,3087.9,3087.3,0.09668063]
[1767887235316,4.08644684,3087.9,3087.1,0.09668063]
[1767887235629,4.08644684,3087.9,3087.2,0.09668063]
[1767887236020,0.92928325,3088.6,3087.2,0.09668063]
[1767887236207,0.2317129,3088.6,3087.4,0.09668063]
[1767887236412,4.08581771,3088.5,3087.6,0.09668063]
[1767887236714,0.92928325,3089.0,3087.8,0.09668063]
[1767887236914,6.4749585,3089.3,3088.2,0.09668063]
[1767887237146,3.23797925,3089.3,3088.2,0.09668063]
[1767887237351,6.4749585,3089.3,3088.0,3.33502259]
[1767887237643,6.4749585,3089.3,3087.8,3.33520966]
[1767887237644,0.04046355,3089.2,3088.1,0.43018289]
[1767887237813,6.4749585,3089.3,3088.1,0.09668063]
[1767887238015,3.23797925,3089.3,3088.3,0.09668063]
[1767887238213,4.08597925,3089.3,3088.3,0.09668063]
[1767887238515,7.3229585,3089.3,3088.3,0.09668063]
[1767887239146,0.9697468,3089.2,3087.6,0.96557394]
[1767887239349,2.12271525,3089.2,3087.9,0.09668063]
[1767887240116,2.0822517,3089.2,3087.9,0.09668063]
[1767887240421,1.15296845,3089.2,3088.1,0.09668063]
[1767887240637,0.848,3089.1,3088.1,0.09668063]
[1767887240837,0.848,3089.1,3088.3,0.09668063]
[1767887241147,6.51505341,3089.0,3088.1,0.09668063]
[1767887241347,3.23729362,3089.0,3088.1,0.09668063]
[1767887241945,3.23729362,3089.0,3088.2,0.33349649]
[1767887242727,0.848,3089.1,3088.3,0.09668063]
[1767887243143,3.23729362,3089.0,3088.1,0.09668063]
[1767887243346,6.47458724,3089.0,3088.1,0.09668063]
[1767887243515,3.23729362,3089.0,3088.1,3.33486041]
[1767887243718,3.23729362,3089.0,3088.2,0.33348604]
[1767887244347,3.23729362,3089.0,3088.3,0.09668063]
[1767887244938,0.001,3088.7,3088.3,0.09668063]
[1767887245532,4.08508667,3089.2,3088.5,0.09668063]
[1767887245828,0.848,3089.2,3088.5,0.09668063]
[1767887246016,3.23801831,3089.3,3088.5,0.09668063]
[1767887246017,0.001,3089.3,3088.7,0.09668063]
[1767887246765,0.002,3090.3,3089.1,0.09668063]
[1767887246914,0.848,3090.0,3088.9,3.69800882]
[1767887247115,0.848,3090.0,3088.9,0.09668063]
[1767887247344,3.23635069,3089.9,3089.0,3.23729362]
[1767887247534,0.73610447,3089.9,3089.0,3.23729362]
[1767887247737,0.73610447,3089.9,3089.0,6.47458724]
[1767887247939,4.08428116,3090.0,3089.1,0.09668063]
[1767887248246,0.002,3090.3,3089.5,3.60132819]
[1767887248454,0.002,3090.3,3089.5,0.09668063]
[1767887248851,0.002,3090.3,3089.5,1.06225457]
[1767887249031,0.848,3090.9,3089.5,1.06225457]
[1767887249352,0.92928325,3090.8,3089.2,6.47416806]
[1767887249537,0.97172847,3090.6,3089.3,0.65708487]
[1767887249729,0.97172847,3090.6,3088.9,3.23737885]
[1767887249913,0.93128325,3090.6,3088.7,0.94368063]
[1767887250118,0.93128325,3090.6,3088.9,3.23734136]
[1767887250119,0.97172847,3090.6,3088.9,3.23734136]
[1767887250420,0.97172847,3090.6,3088.6,0.96557394]
[1767887250837,0.92928325,3090.5,3088.7,3.23751934]
[1767887251051,3.64377341,3090.6,3088.8,3.23749658]
[1767887251052,0.92928325,3090.3,3088.8,3.23749658]
[1767887251253,0.92928325,3090.1,3088.9,3.23739578]
[1767887251454,6.4724919,3090.0,3088.8,3.23750323]
[1767887251773,6.4724919,3090.0,3088.7,4.00410691]
[1767887252048,0.74017752,3089.9,3088.8,0.72418017]
[1767887252549,0.74017752,3089.9,3088.7,3.2375882]
[1767887252759,0.74017752,3089.9,3088.7,6.47519625]
[1767887252922,1.58817752,3089.9,3088.7,6.47519625]
[1767887253525,3.23645543,3089.8,3088.6,3.23768783]
[1767887254454,6.47291086,3089.8,3088.6,3.23768783]
[1767887254755,4.04256427,3089.8,3088.7,0.53933992]
[1767887255146,0.91029332,3089.7,3088.7,0.53933992]
[1767887255453,4.04256427,3089.8,3088.7,0.53933992]
[1767887255655,0.80610884,3089.8,3088.8,6.47500646]
[1767887255953,3.23579966,3090.5,3088.8,6.47500646]
[1767887255954,4.08428744,3090.0,3088.8,6.47500646]
[1767887256123,6.47257488,3090.0,3088.9,0.90485149]
[1767887256851,6.47257488,3090.0,3088.8,3.23750323]
[1767887258065,0.001,3089.5,3088.8,3.23750323]
[1767887258277,0.001,3089.5,3088.7,0.53933992]
[1767887258465,0.001,3089.5,3088.6,3.23764971]
[1767887258788,0.001,3089.5,3088.1,4.99006873]
[1767887258989,0.001,3089.5,3088.3,3.23797986]
[1767887259138,0.001,3089.5,3088.4,3.23792157]
[1767887259340,0.001,3089.5,3088.3,3.23799918]
[1767887259638,6.47374894,3089.4,3088.4,0.64761265]
[1767887259845,0.91029332,3089.3,3087.9,3.23836312]
[1767887260043,0.91029332,3089.3,3087.8,3.23851496]
[1767887260242,0.91029332,3089.3,3087.9,3.23838725]
[1767887260771,0.91029332,3089.3,3088.0,3.23829134]
[1767887260972,0.91029332,3089.3,3087.9,3.23840251]
[1767887261267,1.06209167,3089.2,3088.0,0.32384025]
[1767887261468,0.848,3089.1,3088.0,0.32384025]
[1767887261765,6.47458724,3089.0,3087.8,3.23852142]
[1767887262572,3.23729362,3089.0,3087.8,3.23852142]
[1767887262759,4.08523705,3089.1,3087.9,0.90485149]
[1767887263889,4.08523705,3089.1,3087.6,3.2387479]
[1767887263890,8.23276742,3089.1,3087.6,3.2387479]
[1767887264043,1.83977923,3089.0,3087.7,3.56247784]
[1767887264378,0.91029332,3088.9,3087.4,3.23893487]
[1767887264963,0.91029332,3088.9,3087.6,3.23868736]
[1767887265157,0.91029332,3088.9,3087.3,3.33572845]
[1767887265359,0.91029332,3088.9,3087.5,3.23880831]
[1767887265573,0.18397792,3088.8,3087.6,0.32388083]
[1767887265961,6.4752161,3088.7,3087.4,3.23893861]
[1767887266168,6.4752161,3088.7,3087.3,3.33575616]
[1767887266368,6.4752161,3088.7,3087.4,3.23895411]
[1767887266567,6.4752161,3088.7,3087.6,3.23873167]
[1767887267064,6.4752161,3088.7,3087.3,3.33572101]
[1767887267269,0.98967371,3088.6,3087.4,3.74770038]
[1767887267474,0.98967371,3088.6,3087.6,3.23874203]
[1767887267848,0.98967371,3088.6,3087.5,3.23884826]
[1767887268181,3.23781771,3088.5,3087.5,3.23884826]
[1767887268477,6.47563542,3088.5,3087.5,3.23884826]
[1767887268677,7.22216633,3088.5,3087.4,0.50875725]
[1767887268858,7.22216633,3088.5,3087.4,3.74772468]
[1767887269676,3.98434862,3088.5,3087.4,6.98669598]
[1767887269873,0.92948591,3089.0,3087.4,6.98669598]
[1767887269874,3.23729636,3089.0,3087.8,3.69800882]
[1767887270178,0.848,3089.2,3088.0,0.09668063]
[1767887272584,3.23718882,3089.1,3088.1,3.2382371]
[1767887273855,3.23687447,3089.4,3088.2,1.00153212]
[1767887274185,3.23687447,3089.4,3088.3,1.65265212]
[1767887274508,0.001,3089.5,3088.8,0.90485149]
[1767887274794,0.001,3089.5,3088.8,7.3798443]
[1767887275467,0.001,3089.5,3088.9,0.09668063]
[1767887275784,0.848,3090.0,3089.0,0.90485149]
[1767887275956,0.002,3090.6,3088.9,3.69800882]
[1767887275957,0.91029332,3090.4,3088.9,3.69800882]
[1767887276280,0.17582933,3090.3,3089.1,0.09668063]
[1767887276666,3.2360365,3090.2,3089.2,3.23708403]
[1767887277255,3.2360365,3090.2,3089.3,0.09668063]
[1767887278484,0.848,3090.5,3089.3,1.00153212]
[1767887278660,4.08373454,3090.5,3089.4,7.37860043]
[1767887278859,4.08373454,3090.5,3089.5,0.74752811]
[1767887279050,0.848,3090.9,3089.6,0.09668063]
[1767887279552,0.91029332,3090.8,3089.5,0.74752811]
[1767887279856,0.91029332,3090.8,3089.5,0.84420874]
[1767887280387,0.91029332,3090.6,3089.0,1.10200016]
[1767887280563,0.91029332,3090.2,3088.6,0.09668063]
[1767887280769,0.91029332,3090.0,3088.6,6.5720508]
[1767887280993,0.91029332,3090.0,3088.8,0.09668063]
[1767887281481,0.848,3090.1,3088.8,0.09668063]
[1767887282185,1.75829332,3090.1,3088.8,0.09668063]
[1767887282487,2.90490219,3090.1,3088.8,0.85403892]
[1767887282695,1.99460887,3090.1,3088.8,0.85403892]
[1767887282869,3.23624595,3090.0,3088.9,6.47479684]
[1767887283077,3.23624595,3090.0,3088.9,3.23739842]
[1767887283258,7.38257266,3090.0,3088.8,0.75735829]
[1767887283465,7.38257266,3090.0,3088.7,3.23755673]
[1767887283466,1.47362062,3089.9,3088.7,3.23755673]
[1767887283761,1.43316624,3089.9,3088.8,3.23748411]
[1767887283991,0.52308548,3089.9,3088.8,3.23748411]
[1767887284487,3.23615572,3090.1,3088.9,0.09668063]
[1767887284657,6.47231144,3090.1,3088.9,0.09668063]
[1767887284859,6.47231144,3090.1,3089.0,3.23729362]
[1767887285082,6.47231144,3090.1,3088.9,0.09668063]
[1767887285393,0.848,3090.2,3088.9,6.57145426]
[1767887285555,0.848,3090.4,3089.1,0.09668063]
[1767887285759,0.848,3090.5,3089.3,0.09668063]
[1767887286359,0.91008076,3090.5,3089.1,0.09668063]
[1767887286661,0.91008076,3090.3,3089.1,0.09668063]
[1767887286984,7.38215376,3090.2,3089.0,0.74949641]
[1767887287287,0.73821538,3090.1,3088.7,1.02019047]
[1767887287494,0.95053383,3090.0,3088.5,6.49]
[1767887287682,0.95053383,3090.0,3088.4,3.23788479]
[1767887287867,0.95053383,3090.0,3088.2,0.09668063]
[1767887288464,0.95053383,3090.0,3088.5,3.23776052]
[1767887288693,0.91008076,3089.8,3088.6,0.33344411]
[1767887288892,0.91008076,3089.8,3088.4,0.09668063]
[1767887289191,0.91008076,3089.6,3088.4,0.09668063]
[1767887289571,0.91008076,3089.6,3088.5,3.23776495]
[1767887290083,0.91008076,3089.6,3088.6,0.09668063]
[1767887290290,0.91008076,3089.6,3088.8,0.09668063]
[1767887290969,3.2360365,3090.2,3089.0,0.09668063]
[1767887291159,3.48244015,3090.2,3089.0,1.02019047]